bitfinex/quotes_SOLUSD_20241110
["timestamp","ask_amount","ask_price","bid_price","bid_amount"]
[1731273190526,37.55706491,200.03,199.94,37.55706491]
[1731273190728,37.55706491,200.01,199.92,37.55706491]
[1731273190902,37.55706491,199.97,199.88,37.55706491]
[1731273191103,0.2,200.09,199.91,37.55706491]
[1731273191302,6.3258,200.12,199.84,0.1]
[1731273191303,37.55706491,200.03,199.95,37.55706491]
[1731273191518,4.998,200.08,199.95,37.55706491]
[1731273191519,37.55706491,200.05,199.95,37.55706491]
[1731273191828,37.55706491,200.09,200.01,37.55706491]
[1731273192053,37.55706491,200.04,199.93,5.85750795]
[1731273192209,37.55706491,200.04,199.95,37.55706491]
[1731273192527,37.55706491,200.06,199.93,5.95750795]
[1731273192704,37.55706491,200.06,199.96,37.55706491]
[1731273192907,37.55706491,200.06,199.98,37.55706491]
[1731273193218,0.2,200.12,200.0,37.55706491]
[1731273193451,0.2,200.12,199.84,12.5093]
[1731273193452,2.43208514,200.55,200.34,0.2]
[1731273193727,4.86417028,200.64,200.63,0.1]
[1731273193934,4.86417028,200.64,200.63,37.65706491]
[1731273194107,4.86417028,200.64,200.61,0.1]
[1731273194310,4.86417028,200.64,200.63,37.75706491]
[1731273194623,37.55706491,200.71,200.61,0.1]
[1731273194923,37.55706491,200.71,200.59,37.55706491]
[1731273194924,37.55706491,200.69,200.59,37.55706491]
[1731273195135,37.55706491,200.61,200.54,0.1]
[1731273195741,37.55706491,200.57,200.49,0.1]
[1731273195946,37.55706491,200.55,200.51,0.1]
[1731273196235,37.55706491,200.53,200.45,0.1]
[1731273196541,37.55706491,200.53,200.42,37.55706491]
[1731273196542,37.55706491,200.53,200.48,0.1]
[1731273196841,37.55706491,200.6,200.45,22.476884]
[1731273197034,37.55706491,200.56,200.45,22.476884]
[1731273197233,37.55706491,200.58,200.46,42.54556491]
[1731273197542,0.14801962,200.64,200.56,37.55706491]
[1731273198132,4.9842,200.63,200.56,37.55706491]
[1731273198318,42.54126491,200.63,200.52,37.55706491]
[1731273198838,37.55706491,200.61,200.53,23.776884]
[1731273199048,37.55706491,200.61,200.52,37.55706491]
[1731273199237,37.55706491,200.61,200.51,23.776884]
[1731273199550,37.55706491,200.61,200.52,37.55706491]
[1731273199551,42.54196491,200.61,200.52,37.55706491]
[1731273199726,37.55706491,200.65,200.56,37.55706491]
[1731273199920,0.1,200.76,200.53,23.776884]
[1731273199921,37.55706491,200.67,200.58,37.55706491]
[1731273200246,4.9817,200.74,200.65,23.776884]
[1731273200417,42.53806491,200.77,200.67,23.776884]
[1731273200622,42.53736491,200.79,200.71,23.776884]
[1731273200817,37.55706491,200.77,200.68,37.55706491]
[1731273201126,12.4435,200.91,200.37,19.935053]
[1731273201127,0.1,200.97,200.75,37.55706491]
[1731273201436,37.55706491,200.91,200.81,37.55706491]
[1731273201627,37.55706491,200.93,200.83,37.55706491]
[1731273202129,37.55706491,200.95,200.87,37.55706491]
[1731273202336,1.13056227,200.94,200.93,37.55706491]
[1731273202517,1.13056227,200.94,200.93,38.65187752]
[1731273202721,1.13056227,200.94,200.93,51.81348107]
[1731273202944,1.13056227,200.94,200.93,37.55706491]
[1731273203151,1.13056227,200.94,200.91,37.55706491]
[1731273203546,1.13056227,200.94,200.92,4.9771]
[1731273203918,37.55706491,200.98,200.89,42.53466491]
[1731273204133,37.55706491,200.98,200.89,37.55706491]
[1731273204334,37.55706491,200.98,200.9,4.9776]
[1731273205253,37.55706491,201.02,200.93,37.55706491]
[1731273205952,37.55706491,201.04,200.95,37.55706491]
[1731273206133,37.55706491,201.07,200.98,37.55706491]
[1731273206462,37.55706491,201.08,201.0,37.55706491]
[1731273206665,37.55706491,201.06,200.98,37.55706491]
[1731273206973,37.55706491,201.08,200.98,37.55706491]
[1731273207541,37.55706491,201.2,200.98,37.55706491]
[1731273207542,37.55706491,201.06,200.98,42.53266491]
[1731273207850,4.9727,201.1,200.92,49.99976491]
[1731273207851,37.55706491,201.0,200.92,49.99976491]
[1731273208060,37.55706491,201.0,200.92,12.4427]
[1731273208355,37.55706491,201.03,200.95,37.55706491]
[1731273208554,37.55706491,201.03,200.93,37.55706491]
[1731273208764,37.55706491,201.05,200.96,43.07642202]
[1731273208947,37.55706491,201.07,200.98,37.55706491]
[1731273209250,0.1,201.23,200.93,0.1]
[1731273209251,37.55706491,201.11,201.02,37.55706491]
[1731273209431,37.55706491,201.07,200.98,37.55706491]
[1731273209636,37.55706491,201.01,200.93,17.4189]
[1731273209843,37.55706491,201.01,200.92,37.55706491]
[1731273209844,37.55706491,200.95,200.88,7.74224644]
[1731273210037,6.4291,201.08,200.76,37.55706491]
[1731273210038,0.2,200.98,200.76,37.55706491]
[1731273210335,6.4291,201.08,200.77,1.13847401]
[1731273210336,0.1,200.86,200.77,1.13847401]
[1731273210537,0.1,200.82,200.77,1.13847401]
[1731273210765,37.65706491,200.78,200.77,1.13847401]
[1731273211091,61.33394891,200.78,200.77,1.13847401]
[1731273211257,37.55706491,200.78,200.77,1.13847401]
[1731273211588,42.53756491,200.78,200.63,17.4445]
[1731273211878,37.55706491,200.72,200.63,17.4445]
[1731273212084,37.55706491,200.68,200.63,12.4605]
[1731273212465,37.55706491,200.66,200.56,12.5647]
[1731273212681,37.55706491,200.69,200.6,37.55706491]
[1731273213372,37.55706491,200.74,200.64,37.55706491]
[1731273213575,37.55706491,200.74,200.65,4.9838]
[1731273214179,37.55706491,200.69,200.62,4.9843]
[1731273214384,37.55706491,200.69,200.6,55.00466491]
[1731273214785,37.55706491,200.65,200.6,12.4626]
[1731273214984,37.55706491,200.67,200.6,12.4626]
[1731273215190,37.55706491,200.63,200.57,4.9856]
[1731273215374,37.55706491,200.61,200.53,12.4667]
[1731273215566,37.55706491,200.67,200.59,17.4484]
[1731273215868,37.55706491,200.67,200.59,12.4632]
[1731273216068,37.55706491,200.65,200.59,12.4632]
[1731273216661,37.55706491,200.65,200.59,17.4484]
[1731273216867,37.55706491,200.65,200.59,12.4632]
[1731273217064,37.55706491,200.68,200.59,12.4632]
[1731273217274,37.55706491,200.72,200.64,37.55706491]
[1731273217486,37.55706491,200.74,200.64,37.55706491]
[1731273217690,37.55706491,200.72,200.65,12.4593]
[1731273217864,37.55706491,200.7,200.65,12.4593]
[1731273218271,37.55706491,200.68,200.61,4.9847]
[1731273218966,37.55706491,200.68,200.61,17.4466]
[1731273219166,12.4466,200.86,200.61,17.4466]
[1731273219167,4.9788,200.85,200.67,37.65706491]
[1731273219372,37.55706491,200.73,200.64,37.55706491]
[1731273219670,37.55706491,200.73,200.65,4.9838]
[1731273220071,37.55706491,200.77,200.68,37.55706491]
[1731273220486,37.55706491,200.79,200.7,37.55706491]
[1731273220669,37.55706491,200.81,200.72,37.55706491]
[1731273221066,37.55706491,200.81,200.7,0.1]
[1731273221272,37.55706491,201.0,200.7,0.1]
[1731273221273,37.55706491,200.86,200.78,37.55706491]
[1731273221987,4.9783,200.88,200.78,36.05706491]
[1731273221988,42.53536491,200.88,200.78,36.05706491]
[1731273222191,37.55706491,200.9,200.82,37.65706491]
[1731273222394,37.55706491,200.9,200.78,17.4317]
[1731273222395,37.55706491,200.92,200.84,37.55706491]
[1731273222796,37.55706491,200.94,200.86,37.55706491]
[1731273223290,37.55706491,200.92,200.84,37.55706491]
[1731273223802,37.55706491,200.92,200.83,4.9791]
[1731273224012,37.55706491,200.88,200.8,4.9798]
[1731273224193,37.55706491,200.88,200.78,54.98896491]
[1731273224579,37.55706491,200.9,200.82,37.55706491]
[1731273224779,37.55706491,200.88,200.78,50.00846491]
[1731273225207,37.55706491,200.88,200.78,54.98896491]
[1731273225914,37.55706491,200.92,200.84,37.55706491]
[1731273226085,37.55706491,200.94,200.86,37.55706491]
[1731273226393,37.55706491,200.96,200.86,37.55706491]
[1731273226593,37.55706491,200.96,200.8,37.55706491]
[1731273226594,37.55706491,201.03,200.93,37.55706491]
[1731273226810,4.9724,201.11,200.99,37.55706491]
[1731273227112,4.9724,201.11,201.01,37.55706491]
[1731273227113,37.55706491,201.1,201.01,37.55706491]
[1731273227292,12.5238,201.23,201.07,37.55706491]
[1731273227484,4.9696,201.22,201.07,37.55706491]
[1731273227680,37.55706491,201.16,201.07,37.55706491]
[1731273227888,37.55706491,201.14,201.05,37.55706491]
[1731273228880,37.55706491,201.13,201.05,37.55706491]
[1731273229099,37.55706491,201.11,201.03,37.55706491]
[1731273229519,37.55706491,201.11,201.01,37.55706491]
[1731273229829,37.55706491,201.11,201.01,42.53166491]
[1731273230001,37.55706491,201.13,201.05,37.55706491]
[1731273230200,6.4507,201.27,201.08,37.55706491]
[1731273230201,37.55706491,201.17,201.08,37.55706491]
[1731273230400,37.55706491,201.19,201.08,0.1]
[1731273230734,4.9686,201.26,201.16,37.55706491]
[1731273230919,12.4172,201.34,201.16,37.55706491]
[1731273230920,37.55706491,201.23,201.16,37.55706491]
[1731273231119,37.55706491,201.25,201.16,37.55706491]
[1731273231324,12.4131,201.4,201.22,37.55706491]
[1731273231622,12.4131,201.4,201.23,17.3929]
[1731273231623,37.55706491,201.31,201.23,17.3929]
[1731273231821,49.97016491,201.4,201.23,12.4235]
[1731273231822,37.55706491,201.27,201.23,12.4235]
[1731273232226,37.55706491,201.27,201.23,17.3929]
[1731273232404,37.55706491,201.31,201.23,17.3929]
[1731273232605,37.55706491,201.33,201.24,37.65706491]
[1731273232813,37.55706491,201.35,201.28,37.55706491]
[1731273233019,37.55706491,201.32,201.23,17.3929]
[1731273233201,37.55706491,201.28,201.23,17.3929]
[1731273233405,37.55706491,201.3,201.23,17.3929]
[1731273233726,37.55706491,201.28,201.23,17.3929]
[1731273233903,37.55706491,201.24,201.17,12.4269]
[1731273234223,37.55706491,201.21,201.17,12.4269]
[1731273234402,20.0,201.38,201.17,54.95486491]
[1731273234726,4.9654,201.39,201.19,37.65706491]
[1731273234908,37.55706491,201.31,201.23,37.55706491]
[1731273235303,37.55706491,201.33,201.2,7.35612131]
[1731273235510,37.55706491,201.24,201.17,17.3978]
[1731273235714,37.55706491,201.24,201.17,12.4269]
[1731273235910,37.55706491,201.2,201.15,4.9714]
[1731273236118,37.55706491,201.2,201.12,4.9721]
[1731273236319,37.55706491,201.15,201.11,12.4306]
[1731273236531,37.55706491,201.15,201.06,37.65706491]
[1731273236820,0.1,201.39,201.18,0.2]
[1731273237131,12.4127,201.41,201.17,0.1]
[1731273237300,4.9642,201.44,201.23,0.1]
[1731273237704,0.1,201.43,201.23,0.1]
[1731273238014,0.1,201.43,201.14,6.86602131]
[1731273238015,37.55706491,201.36,201.26,37.55706491]
[1731273238213,37.55706491,201.49,201.35,37.55706491]
[1731273238516,37.55706491,201.49,201.4,37.55706491]
[1731273238719,37.55706491,201.49,201.42,37.55706491]
[1731273238904,37.55706491,201.49,201.4,37.55706491]
[1731273239114,37.55706491,201.42,201.33,37.55706491]
[1731273239304,37.55706491,201.44,201.35,37.55706491]
[1731273239698,37.55706491,201.42,201.34,12.4168]
[1731273239899,37.55706491,201.44,201.34,49.97386491]
[1731273240223,37.55706491,201.47,201.38,37.55706491]
[1731273240718,37.55706491,201.43,201.34,49.97386491]
[1731273240919,4.962,201.53,201.36,37.55706491]
[1731273240920,5.062,201.53,201.36,37.55706491]
[1731273241129,37.55706491,201.46,201.38,37.55706491]
[1731273241503,37.55706491,201.46,201.36,37.55706491]
[1731273241902,37.55706491,201.48,201.4,37.55706491]
[1731273242106,37.55706491,201.45,201.38,37.55706491]
[1731273242414,37.55706491,201.47,201.38,37.55706491]
[1731273242629,42.51956491,201.51,201.41,37.55706491]
[1731273242812,4.9608,201.58,201.43,37.55706491]
[1731273243004,37.55706491,201.52,201.43,37.55706491]
[1731273243414,37.55706491,201.5,201.41,37.55706491]
[1731273243826,37.55706491,201.46,201.37,37.55706491]
[1731273244123,0.12549,201.55,201.34,12.4162]
[1731273244124,0.2,201.5,201.34,12.4162]
[1731273244318,37.55706491,201.43,201.34,12.4162]
[1731273244833,37.55706491,201.41,201.34,12.4162]
[1731273245321,37.55706491,201.47,201.39,37.55706491]
[1731273245519,4.9628,201.5,201.43,37.55706491]
[1731273245825,37.55706491,201.51,201.41,37.55706491]
[1731273246129,37.55706491,201.51,201.43,37.55706491]
[1731273246621,4.9618,201.54,201.45,37.55706491]
[1731273246622,37.55706491,201.53,201.45,37.55706491]
[1731273246824,4.9614,201.56,201.49,37.55706491]
[1731273247130,37.55706491,201.53,201.45,37.55706491]
[1731273247300,37.55706491,201.55,201.47,37.55706491]
[1731273247508,37.55706491,201.57,201.49,37.55706491]
[1731273247813,42.51816491,201.57,201.49,37.55706491]
[1731273248004,12.3982,201.65,201.42,1.09236477]
[1731273248005,42.51766491,201.59,201.51,37.55706491]
[1731273248417,37.55706491,201.61,201.53,37.55706491]
[1731273248618,4.9599,201.62,201.56,37.55706491]
[1731273248825,37.55706491,201.66,201.58,37.55706491]
[1731273249121,4.9578,201.7,201.58,37.55706491]
[1731273249122,37.55706491,201.7,201.6,37.55706491]
[1731273249323,37.55706491,201.72,201.64,37.55706491]
[1731273249511,37.55706491,201.8,201.6,37.55706491]
[1731273249512,37.55706491,201.75,201.66,37.55706491]
[1731273249708,37.55706491,201.71,201.64,37.55706491]
[1731273250323,37.55706491,201.75,201.68,37.55706491]
[1731273250529,37.55706491,201.75,201.66,37.55706491]
[1731273250825,37.55706491,201.71,201.62,37.55706491]
[1731273251007,37.55706491,201.67,201.58,37.55706491]
[1731273251409,37.55706491,201.65,201.58,37.55706491]
[1731273251607,37.55706491,201.67,201.6,37.55706491]
[1731273251827,37.55706491,201.66,201.58,37.55706491]
[1731273252032,37.55706491,201.68,201.6,37.55706491]
[1731273252511,37.55706491,201.64,201.56,37.55706491]
[1731273252830,37.55706491,201.68,201.6,37.55706491]
[1731273253831,4.9551,201.81,201.67,37.18043245]
[1731273254029,37.18043245,201.78,201.7,37.18043245]
[1731273254929,37.18043245,201.99,201.83,0.1]
[1731273255114,4.9502,202.01,201.84,16.68399921]
[1731273255316,37.18043245,201.91,201.84,37.18043245]
[1731273255521,37.28043245,202.0,201.84,37.18043245]
[1731273255522,37.18043245,201.93,201.84,37.18043245]
[1731273255841,37.18043245,201.89,201.81,37.18043245]
[1731273256011,5.0502,202.14,201.87,37.18043245]
[1731273256212,5.0502,202.14,201.8,37.18043245]
[1731273256213,37.18043245,202.12,202.02,37.18043245]
[1731273256422,42.12723245,202.16,202.06,37.18043245]
[1731273256612,12.3621,202.24,202.04,37.18043245]
[1731273256613,42.12753245,202.14,202.04,37.18043245]
[1731273256929,37.18043245,202.12,202.04,37.18043245]
[1731273257120,37.18043245,202.12,201.99,12.3763]
[1731273257121,37.18043245,202.1,201.99,12.3763]
[1731273257325,37.18043245,202.08,201.99,20.79842131]
[1731273257527,37.18043245,202.08,201.99,12.3763]
[1731273257726,37.18043245,202.04,201.96,37.18043245]
[1731273258028,37.18043245,202.1,201.92,49.56093245]
[1731273258029,37.18043245,202.02,201.92,49.56093245]
[1731273258244,37.18043245,202.02,201.94,37.18043245]
[1731273258411,37.18043245,202.02,201.92,49.56093245]
[1731273258612,37.18043245,201.99,201.92,12.3805]
[1731273258829,37.18043245,202.01,201.92,62.93545376]
[1731273259020,37.18043245,201.99,201.92,62.93545376]
[1731273259222,37.18043245,202.01,201.92,62.93545376]
[1731273259438,37.18043245,202.05,201.96,37.18043245]
[1731273259742,4.9487,202.07,201.92,25.75502131]
[1731273259743,37.18043245,202.07,201.98,37.18043245]
[1731273259915,37.18043245,202.05,201.98,37.18043245]
[1731273260112,4.9482,202.09,201.97,8.42212131]
[1731273260113,37.18043245,202.06,201.97,8.42212131]
[1731273260352,4.9482,202.09,201.97,8.42212131]
[1731273260353,37.18043245,202.04,201.97,8.42212131]
[1731273260512,4.9482,202.09,201.97,8.42212131]
[1731273260713,37.18043245,202.07,201.98,56.45011121]
[1731273260923,4.9468,202.15,202.02,37.18043245]
[1731273261124,37.18043245,202.08,202.02,15.89990006]
[1731273261318,37.18043245,202.06,201.98,12.3769]
[1731273261523,37.18043245,202.04,201.98,12.3769]
[1731273261719,37.18043245,202.08,202.0,37.18043245]
[1731273261933,37.18043245,202.12,202.05,37.18043245]
[1731273262230,37.18043245,202.13,202.06,7.12388987]
[1731273262434,37.18043245,202.07,202.06,7.12388987]
[1731273262626,37.18043245,202.07,201.96,37.18043245]
[1731273262816,37.18043245,202.09,202.02,37.18043245]
[1731273263138,4.9451,202.22,202.07,37.18043245]
[1731273263437,37.18043245,202.2,202.13,37.18043245]
[1731273263608,4.9441,202.27,202.07,8.77601019]
[1731273263814,37.18043245,202.17,202.07,8.77601019]
[1731273264023,37.18043245,202.17,202.08,4.9485]
[1731273264231,37.18043245,202.13,202.03,37.18043245]
[1731273264428,37.18043245,202.2,201.95,0.1]
[1731273264429,37.18043245,202.04,201.95,7.33807209]
[1731273264637,37.18043245,202.06,201.97,37.18043245]
[1731273264812,37.18043245,202.06,201.98,8.77601019]
[1731273265132,66.7456,202.26,201.94,7.33807209]
[1731273265133,0.22549,202.07,201.94,7.33807209]
[1731273265431,0.22549,202.07,201.83,17.341]
[1731273265432,37.18043245,201.96,201.83,17.341]
[1731273265638,37.18043245,201.91,201.83,17.341]
[1731273265813,37.18043245,201.96,201.88,37.18043245]
[1731273266015,37.18043245,201.94,201.88,8.77601019]
[1731273266232,37.18043245,201.94,201.86,37.18043245]
[1731273266440,23.776884,201.99,201.88,37.18043245]
[1731273266616,0.1,202.13,201.97,37.18043245]
[1731273266819,37.18043245,202.07,201.97,37.18043245]
[1731273267037,37.18043245,202.05,201.97,8.77601019]
[1731273267239,37.18043245,202.03,201.97,8.77601019]
[1731273267421,37.18043245,202.03,201.95,37.18043245]
[1731273267738,37.18043245,202.07,201.97,37.18043245]
[1731273267938,37.18043245,202.09,202.0,37.18043245]
[1731273268116,37.18043245,202.13,202.04,37.18043245]
[1731273268317,37.18043245,202.11,202.02,37.18043245]
[1731273268638,37.18043245,202.09,202.0,37.18043245]
[1731273268844,37.18043245,202.09,202.0,45.95644264]
[1731273269156,24.82023086,202.32,202.0,45.95644264]
[1731273269157,4.9429,202.31,202.08,74.4608649]
[1731273269446,4.9429,202.31,202.01,17.50946059]
[1731273269447,0.1,202.26,202.09,9.18165924]
[1731273269627,0.1,202.26,201.99,0.1]
[1731273269628,0.12549,202.25,201.99,0.1]
[1731273269825,0.12549,202.25,201.9,0.98929949]
[1731273269826,4.9446,202.24,202.03,17.324]
[1731273270026,4.9433,202.29,202.07,0.1]
[1731273270338,0.1,202.37,202.16,0.1]
[1731273270541,37.18043245,202.33,202.23,37.18043245]
[1731273270721,0.1,202.39,202.28,37.18043245]
[1731273270926,37.18043245,202.37,202.28,37.18043245]
[1731273271223,0.1,202.49,202.36,37.18043245]
[1731273271421,37.18043245,202.42,202.34,37.18043245]
[1731273271619,4.9368,202.56,202.34,9.18165924]
[1731273271943,6.1977,202.58,202.36,4.9416]
[1731273271944,37.18043245,202.45,202.36,4.9416]
[1731273272116,37.18043245,202.38,202.3,4.943]
[1731273272319,37.18043245,202.44,202.34,37.18043245]
[1731273272544,37.18043245,202.35,202.19,17.3104]
[1731273272839,37.18043245,202.32,202.23,37.18043245]
[1731273273341,37.18043245,202.34,202.25,37.18043245]
[1731273273541,37.18043245,202.38,202.29,37.18043245]
[1731273273851,37.18043245,202.36,202.27,37.18043245]
[1731273274142,0.1,202.47,202.31,37.18043245]
[1731273274329,37.18043245,202.43,202.33,37.18043245]
[1731273274534,37.18043245,202.43,202.35,37.18043245]
[1731273274923,37.18043245,202.43,202.33,37.18043245]
[1731273275220,12.3407,202.59,202.39,37.18043245]
[1731273275221,37.18043245,202.49,202.39,37.18043245]
[1731273275423,4.9365,202.57,202.3,37.38043245]
[1731273275424,37.18043245,202.51,202.41,37.18043245]
[1731273275931,37.18043245,202.58,202.49,37.18043245]
[1731273276240,37.18043245,202.58,202.46,12.3479]
[1731273276241,37.18043245,202.52,202.46,12.3479]
[1731273276420,37.18043245,202.57,202.48,37.18043245]
[1731273276736,0.2,202.61,202.46,12.3479]
[1731273276930,4.9348,202.64,202.4,49.53213245]
[1731273276931,37.18043245,202.48,202.4,49.53213245]
[1731273277137,37.18043245,202.48,202.4,54.47283245]
[1731273277438,37.18043245,202.52,202.44,37.18043245]
[1731273277741,37.18043245,202.51,202.43,37.18043245]
[1731273277941,37.18043245,202.51,202.44,4.9397]
[1731273278147,37.18043245,202.49,202.41,42.12063245]
[1731273278348,37.18043245,202.47,202.34,7.74087646]
[1731273278636,37.18043245,202.48,202.41,37.18043245]
[1731273278838,37.18043245,202.5,202.43,37.18043245]
[1731273279033,37.18043245,202.54,202.45,37.18043245]
[1731273279243,37.18043245,202.56,202.47,37.18043245]
[1731273279422,4.9353,202.62,202.51,37.18043245]
[1731273279739,37.18043245,202.61,202.53,37.18043245]
[1731273280045,37.18043245,202.61,202.54,11.88301103]
[1731273280436,37.18043245,202.59,202.54,11.88301103]
[1731273280747,37.18043245,202.59,202.54,6.94581103]
[1731273280920,37.18043245,202.59,202.55,6.94581103]
[1731273281336,37.18043245,202.59,202.5,17.2838]
[1731273281543,37.18043245,202.55,202.5,17.2838]
[1731273281724,37.18043245,202.59,202.5,54.46423245]
[1731273281926,37.18043245,202.55,202.5,12.3456]
[1731273282126,37.18043245,202.51,202.47,4.939]
[1731273282445,37.18043245,202.51,202.38,0.1]
[1731273282446,37.18043245,202.49,202.37,37.18043245]
[1731273282627,37.18043245,202.43,202.39,4.9407]
[1731273282821,37.18043245,202.41,202.38,12.3529]
[1731273283022,37.18043245,202.43,202.38,12.3529]
[1731273283423,20.12549,202.58,202.4,37.18043245]
[1731273283624,37.18043245,202.47,202.41,7.74087646]
[1731273283932,37.18043245,202.46,202.38,54.47443245]
[1731273284442,37.18043245,202.5,202.42,37.18043245]
[1731273284745,37.28043245,202.6,202.39,7.74087646]
[1731273284746,37.18043245,202.54,202.44,37.18043245]
[1731273285048,37.18043245,202.56,202.46,37.18043245]
[1731273285244,37.18043245,202.56,202.38,73.61730547]
[1731273285245,37.18043245,202.48,202.38,66.7058]
[1731273285540,37.18043245,202.43,202.38,41.9999]
[1731273286040,37.18043245,202.43,202.38,17.294]
[1731273286247,37.18043245,202.5,202.37,19.738168]
[1731273286248,37.18043245,202.39,202.37,19.738168]
[1731273287444,23.776884,202.38,202.37,19.738168]
[1731273287645,23.776884,202.38,202.23,4.9448]
[1731273287851,37.18043245,202.31,202.23,4.9448]
[1731273288156,37.18043245,202.29,202.26,12.3603]
[1731273288361,37.18043245,202.31,202.26,12.3603]
[1731273289233,37.18043245,202.33,202.26,12.3603]
[1731273289542,37.18043245,202.35,202.26,57.75626687]
[1731273289931,37.18043245,202.33,202.26,20.57583442]
[1731273290132,37.18043245,202.31,202.26,17.3044]
[1731273290853,23.776884,202.39,202.26,17.3044]
[1731273290854,37.18043245,202.29,202.26,17.3044]
[1731273291153,37.18043245,202.33,202.26,17.3044]
[1731273291330,37.18043245,202.36,202.27,37.18043245]
[1731273291533,37.18043245,202.4,202.26,50.24053442]
[1731273291741,37.18043245,202.4,202.26,17.3044]
[1731273291949,37.18043245,202.34,202.26,17.3044]
[1731273292140,36.18043245,202.34,202.21,44.82177042]
[1731273292342,36.18043245,202.34,202.26,61.90103245]
[1731273292540,37.18043245,202.3,202.22,37.18043245]
[1731273292743,37.18043245,202.3,202.21,25.06913442]
[1731273293055,37.18043245,202.3,202.23,37.18043245]
[1731273293274,37.18043245,202.36,202.27,37.18043245]
[1731273293562,37.18043245,202.34,202.25,37.18043245]
[1731273293856,37.18043245,202.4,202.21,17.3086]
[1731273293857,37.18043245,202.32,202.23,37.18043245]
[1731273294067,37.18043245,202.3,202.24,17.3061]
[1731273294354,37.28043245,202.4,202.24,17.3061]
[1731273294355,37.18043245,202.28,202.24,17.3061]
[1731273294553,37.18043245,202.26,202.24,17.3061]
[1731273296156,37.18043245,202.26,202.17,17.3121]
[1731273296348,37.18043245,202.21,202.17,17.3121]
[1731273297364,37.18043245,202.23,202.17,12.3658]
[1731273297658,37.18043245,202.25,202.18,37.18043245]
[1731273298038,37.18043245,202.28,202.2,37.18043245]
[1731273298459,37.18043245,202.3,202.18,7.76053442]
[1731273298642,37.18043245,202.26,202.18,37.18043245]
[1731273298843,6.0552,202.35,202.17,12.3658]
[1731273298844,37.18043245,202.28,202.2,37.18043245]
[1731273299040,37.18043245,202.3,202.22,37.18043245]
[1731273299455,37.18043245,202.32,202.25,42.027]
[1731273299639,37.18043245,202.34,202.26,37.18043245]
[1731273299841,37.18043245,202.42,202.32,37.18043245]
[1731273300054,37.18043245,202.42,202.34,37.18043245]
[1731273300264,37.18043245,202.46,202.38,37.18043245]
[1731273300465,37.18043245,202.42,202.32,37.18043245]
[1731273300787,37.18043245,202.33,202.24,37.18043245]
[1731273300960,37.18043245,202.37,202.28,37.18043245]
[1731273301170,37.18043245,202.5,202.34,37.18043245]
[1731273301361,37.18043245,202.45,202.37,17.295]
[1731273301546,6.0552,202.54,202.4,37.18043245]
[1731273301547,37.18043245,202.48,202.4,37.18043245]
[1731273301953,37.18043245,202.52,202.44,37.18043245]
[1731273302164,37.18043245,202.58,202.5,37.18043245]
[1731273302355,37.18043245,202.62,202.53,37.18043245]
[1731273302858,37.18043245,202.64,202.55,37.18043245]
[1731273303067,11.0878,202.74,202.59,37.18043245]
[1731273303068,37.18043245,202.68,202.59,37.18043245]
[1731273303364,37.18043245,202.64,202.55,37.18043245]
[1731273303550,37.18043245,202.68,202.59,37.18043245]
[1731273303764,37.18043245,202.66,202.59,37.18043245]
[1731273304070,37.18043245,202.66,202.57,37.18043245]
[1731273304252,37.18043245,202.68,202.61,37.18043245]
[1731273304453,37.18043245,202.68,202.59,37.18043245]
[1731273304890,37.18043245,202.68,202.61,37.18043245]
[1731273305181,37.18043245,202.72,202.63,37.18043245]
[1731273305345,37.18043245,202.74,202.65,37.18043245]
[1731273305546,37.18043245,202.74,202.66,41.942]
[1731273305767,37.18043245,202.76,202.67,37.18043245]
[1731273305948,37.18043245,202.76,202.67,23.776884]
[1731273306154,37.18043245,202.76,202.68,37.18043245]
[1731273306362,37.18043245,202.7,202.66,17.2702]
[1731273306563,37.18043245,202.75,202.67,37.18043245]
[1731273306751,37.18043245,202.71,202.66,41.942]
[1731273306953,37.18043245,202.67,202.66,17.2702]
[1731273307164,37.18043245,202.67,202.66,12.3359]
[1731273307548,37.18043245,202.67,202.58,41.9587]
[1731273307755,37.18043245,202.65,202.58,17.2771]
[1731273307969,37.18043245,202.69,202.61,37.18043245]
[1731273308301,37.18043245,202.73,202.63,37.18043245]
[1731273308451,37.18043245,202.73,202.58,41.9587]
[1731273308452,37.18043245,202.73,202.65,37.18043245]
[1731273308853,6.0552,202.84,202.65,44.94096687]
[1731273309070,37.18043245,202.79,202.69,37.18043245]
[1731273309277,37.18043245,202.77,202.69,7.76053442]
[1731273309452,37.18043245,202.77,202.68,37.18043245]
[1731273309774,37.18043245,202.77,202.67,7.76053442]
[1731273310080,37.18043245,202.81,202.72,37.18043245]
[1731273310258,37.18043245,202.79,202.68,23.776884]
[1731273310458,6.1552,202.94,202.73,37.18043245]
[1731273310666,37.18043245,202.81,202.71,37.18043245]
[1731273310971,37.18043245,202.79,202.71,44.94096687]